[Event "Early-Titled-Tuesday-Blitz-May-07-2024"]
[Site "Chess.com"]
[Date "2024.05.07"]
[Round "8"]
[White "praveenb2002"]
[Black "Statham_01"]
[Result "1-0"]
[WhiteElo "2856"]
[BlackElo "2671"]
[TimeControl "180+1"]
[EndTime "9:34:46 PDT"]
[Termination "praveenb2002 won on time"]

1. c4 {[%clk 0:03:00.9]} 1... e5 {[%clk 0:02:59.5]} 2. g3 {[%clk 0:02:59.9]}
2... Nf6 {[%clk 0:02:56.1]} 3. Bg2 {[%clk 0:02:59.9]} 3... c6 {[%clk 0:02:56.4]}
4. Nf3 {[%clk 0:02:56.7]} 4... e4 {[%clk 0:02:56.8]} 5. Nd4 {[%clk 0:02:57.3]}
5... Qb6 {[%clk 0:02:56]} 6. Nc2 {[%clk 0:02:53.6]} 6... Bc5 {[%clk 0:02:55.1]}
7. O-O {[%clk 0:02:47.8]} 7... d5 {[%clk 0:02:55.6]} 8. cxd5 {[%clk 0:02:39.6]}
8... h5 {[%clk 0:02:52.6]} 9. d4 {[%clk 0:02:33.1]} 9... Bd6 {[%clk 0:02:42.4]}
10. dxc6 {[%clk 0:02:26.3]} 10... h4 {[%clk 0:02:40.9]} 11. Nc3 {[%clk 0:02:25]}
11... Nxc6 {[%clk 0:02:35.2]} 12. Nxe4 {[%clk 0:02:12]} 12... Nxe4 {[%clk
0:02:34.7]} 13. Bxe4 {[%clk 0:02:12.9]} 13... Bh3 {[%clk 0:02:30.6]} 14. Bg2
{[%clk 0:02:13]} 14... hxg3 {[%clk 0:02:25.4]} 15. fxg3 {[%clk 0:02:04.4]} 15...
O-O-O {[%clk 0:02:19]} 16. Rxf7 {[%clk 0:02:01.7]} 16... Ne5 {[%clk 0:01:55.9]}
17. Rxb7 {[%clk 0:01:17.3]} 17... Qa6 {[%clk 0:01:24.8]} 18. Nb4 {[%clk
0:01:04.8]} 18... Qc4 {[%clk 0:00:47.7]} 19. b3 {[%clk 0:00:44.9]} 19... Qc3
{[%clk 0:00:43.6]} 20. Bd2 {[%clk 0:00:40.4]} 20... Qxd4+ {[%clk 0:00:19.7]} 21.
e3 {[%clk 0:00:40.6]} 21... Qxa1 {[%clk 0:00:04.8]} 22. Qxa1 {[%clk 0:00:38.9]}
22... Bxg2 {[%clk 0:00:05.4]} 23. Rxa7 {[%clk 0:00:19.1]} 23... Bb7 {[%clk
0:00:05.5]} 24. Qc3+ {[%clk 0:00:14.6]} 24... Bc7 {[%clk 0:00:05.5]} 25. Rxb7
{[%clk 0:00:05.2]} 25... Kxb7 {[%clk 0:00:06.4]} 26. Be1 {[%clk 0:00:03.5]}
26... Nf3+ {[%clk 0:00:05.8]} 27. Kf2 {[%clk 0:00:03.9]} 27... Ng5 {[%clk
0:00:05.1]} 28. Qc6+ {[%clk 0:00:04.2]} 28... Kc8 {[%clk 0:00:05.3]} 29. Qa8+
{[%clk 0:00:03.9]} 29... Kd7 {[%clk 0:00:05]} 30. Qd5+ {[%clk 0:00:04.5]} 30...
Kc8 {[%clk 0:00:04.2]} 31. Qxg5 {[%clk 0:00:04.8]} 31... Rxh2+ {[%clk
0:00:04.5]} 32. Kg1 {[%clk 0:00:05.1]} 32... Rb2 {[%clk 0:00:02.6]} 33. Qf5+
{[%clk 0:00:05.4]} 33... Kb7 {[%clk 0:00:03.1]} 34. Qb5+ {[%clk 0:00:05.8]}
34... Kc8 {[%clk 0:00:03.7]} 35. Qa6+ {[%clk 0:00:06.3]} 35... Kd7 {[%clk
0:00:03.9]} 36. Qc6+ {[%clk 0:00:06.7]} 36... Kc8 {[%clk 0:00:04]} 37. Nd5
{[%clk 0:00:07.4]} 37... Rd7 {[%clk 0:00:02.1]} 38. Nb6+ {[%clk 0:00:07.8]} 1-0

[Event "Early-Titled-Tuesday-Blitz-May-07-2024"]
[Site "Chess.com"]
[Date "2024.05.07"]
[Round "8"]
[White "Triumphmate"]
[Black "karinachess1"]
[Result "1-0"]
[WhiteElo "2463"]
[BlackElo "2598"]
[TimeControl "180+1"]
[EndTime "9:34:47 PDT"]
[Termination "Triumphmate won by resignation"]

1. e4 {[%clk 0:02:44.2]} 1... e5 {[%clk 0:03:00.1]} 2. Nf3 {[%clk 0:02:44.1]}
2... Nc6 {[%clk 0:03:00.5]} 3. Nc3 {[%clk 0:02:41.9]} 3... Nf6 {[%clk
0:03:00.6]} 4. Bb5 {[%clk 0:02:40.3]} 4... Bd6 {[%clk 0:03:00.6]} 5. d3 {[%clk
0:02:39.4]} 5... h6 {[%clk 0:02:59.4]} 6. Be3 {[%clk 0:02:35.1]} 6... O-O {[%clk
0:02:59.3]} 7. h3 {[%clk 0:02:35.8]} 7... a6 {[%clk 0:02:59.8]} 8. Ba4 {[%clk
0:02:36]} 8... b5 {[%clk 0:02:58.3]} 9. Bb3 {[%clk 0:02:36.7]} 9... Be7 {[%clk
0:02:58.9]} 10. Qd2 {[%clk 0:02:36.9]} 10... d6 {[%clk 0:02:55.4]} 11. g4 {[%clk
0:02:27.1]} 11... Na5 {[%clk 0:02:49.7]} 12. g5 {[%clk 0:02:12.9]} 12... hxg5
{[%clk 0:02:49.7]} 13. Bxg5 {[%clk 0:02:13.8]} 13... Nxb3 {[%clk 0:02:49]} 14.
axb3 {[%clk 0:02:14.7]} 14... c6 {[%clk 0:02:41]} 15. Rg1 {[%clk 0:02:14.9]}
15... Re8 {[%clk 0:01:55.2]} 16. O-O-O {[%clk 0:02:01.3]} 16... a5 {[%clk
0:01:35.7]} 17. Rg3 {[%clk 0:01:46]} 17... Nh5 {[%clk 0:01:27.2]} 18. Bxe7
{[%clk 0:01:43.1]} 18... Qxe7 {[%clk 0:01:28.1]} 19. Rg5 {[%clk 0:01:37.8]}
19... Nf4 {[%clk 0:01:03.3]} 20. Ne2 {[%clk 0:01:21.3]} 20... f6 {[%clk
0:00:50]} 21. Rg3 {[%clk 0:01:12.9]} 21... Nxe2+ {[%clk 0:00:45.2]} 22. Qxe2
{[%clk 0:01:13.8]} 22... a4 {[%clk 0:00:45.4]} 23. Rdg1 {[%clk 0:01:04.1]} 23...
axb3 {[%clk 0:00:36.9]} 24. Rxg7+ {[%clk 0:00:34.5]} 24... Qxg7 {[%clk
0:00:37.8]} 25. Rxg7+ {[%clk 0:00:35.3]} 25... Kxg7 {[%clk 0:00:38.7]} 26. Nh4
{[%clk 0:00:35.4]} 26... Rh8 {[%clk 0:00:35.9]} 27. Qf3 {[%clk 0:00:25.2]} 27...
Kf7 {[%clk 0:00:22.6]} 28. Nf5 {[%clk 0:00:21.3]} 28... Bxf5 {[%clk 0:00:21.1]}
29. Qxf5 {[%clk 0:00:22.2]} 29... Ke7 {[%clk 0:00:19.7]} 30. cxb3 {[%clk
0:00:13.6]} 30... Rag8 {[%clk 0:00:19.6]} 31. d4 {[%clk 0:00:07.6]} 31... Rg5
{[%clk 0:00:15.7]} 32. Qf3 {[%clk 0:00:05.9]} 32... Rgh5 {[%clk 0:00:14.9]} 33.
Qc3 {[%clk 0:00:04.5]} 33... Kd7 {[%clk 0:00:10.5]} 34. dxe5 {[%clk 0:00:04.1]}
34... fxe5 {[%clk 0:00:10.1]} 35. Qa5 {[%clk 0:00:05]} 35... Rc8 {[%clk
0:00:10.2]} 36. Qa7+ {[%clk 0:00:04.8]} 36... Rc7 {[%clk 0:00:10.7]} 37. Qe3
{[%clk 0:00:05.7]} 37... Rc8 {[%clk 0:00:09.5]} 38. Qf3 {[%clk 0:00:05.5]} 38...
Ke7 {[%clk 0:00:07.9]} 39. Qxh5 {[%clk 0:00:05.4]} 39... Rh8 {[%clk 0:00:08.6]}
40. Qxh8 {[%clk 0:00:05.6]} 1-0

[Event "Early-Titled-Tuesday-Blitz-May-07-2024"]
[Site "Chess.com"]
[Date "2024.05.07"]
[Round "8"]
[White "Flaccidmoves"]
[Black "klercaku"]
[Result "0-1"]
[WhiteElo "2370"]
[BlackElo "2270"]
[TimeControl "180+1"]
[EndTime "9:34:48 PDT"]
[Termination "klercaku won by checkmate"]

1. e4 {[%clk 0:03:00.9]} 1... e5 {[%clk 0:02:59.5]} 2. d3 {[%clk 0:02:59.4]}
2... Nc6 {[%clk 0:02:59.1]} 3. Be2 {[%clk 0:02:57.3]} 3... Nf6 {[%clk
0:02:59.2]} 4. Nf3 {[%clk 0:02:56]} 4... d5 {[%clk 0:02:58.7]} 5. Nbd2 {[%clk
0:02:55.6]} 5... dxe4 {[%clk 0:02:53.4]} 6. dxe4 {[%clk 0:02:55.1]} 6... Be7
{[%clk 0:02:51.3]} 7. O-O {[%clk 0:02:54.6]} 7... O-O {[%clk 0:02:51]} 8. h3
{[%clk 0:02:39.1]} 8... h6 {[%clk 0:02:42.5]} 9. c3 {[%clk 0:02:32]} 9... Nh7
{[%clk 0:02:34.6]} 10. Nc4 {[%clk 0:02:29.8]} 10... Bd6 {[%clk 0:02:31.7]} 11.
b4 {[%clk 0:02:19.8]} 11... a6 {[%clk 0:02:26.1]} 12. a4 {[%clk 0:02:18.5]}
12... f5 {[%clk 0:02:18.2]} 13. Nxd6 {[%clk 0:02:07.3]} 13... cxd6 {[%clk
0:02:14.8]} 14. Bc4+ {[%clk 0:01:58.1]} 14... Kh8 {[%clk 0:02:13.9]} 15. Nh4
{[%clk 0:01:55.4]} 15... Qxh4 {[%clk 0:02:10.6]} 16. Qxd6 {[%clk 0:01:48.5]}
16... Qf6 {[%clk 0:02:09.6]} 17. Qd3 {[%clk 0:01:45.6]} 17... fxe4 {[%clk
0:02:07]} 18. Qxe4 {[%clk 0:01:45.3]} 18... Bf5 {[%clk 0:02:07.2]} 19. Qe3
{[%clk 0:01:40.6]} 19... e4 {[%clk 0:02:05.6]} 20. Bd5 {[%clk 0:01:33.7]} 20...
Nxb4 {[%clk 0:01:49.2]} 21. Bxb7 {[%clk 0:00:51.2]} 21... Rab8 {[%clk
0:01:39.3]} 22. Ba3 {[%clk 0:00:22.8]} 22... Nc2 {[%clk 0:01:27.2]} 23. Qa7
{[%clk 0:00:22.5]} 23... Nxa3 {[%clk 0:01:17.7]} 24. Rxa3 {[%clk 0:00:21]} 24...
Qe7 {[%clk 0:01:11.8]} 25. Rb3 {[%clk 0:00:20.5]} 25... Be6 {[%clk 0:01:10.5]}
26. Rb2 {[%clk 0:00:19.6]} 26... Bd5 {[%clk 0:01:08.3]} 27. Rfb1 {[%clk
0:00:19.1]} 27... Bxb7 {[%clk 0:00:53.9]} 28. Rxb7 {[%clk 0:00:18.9]} 28... Rxb7
{[%clk 0:00:52.6]} 29. Rxb7 {[%clk 0:00:19.8]} 29... Qf6 {[%clk 0:00:50.7]} 30.
c4 {[%clk 0:00:20]} 30... Ng5 {[%clk 0:00:46.6]} 31. h4 {[%clk 0:00:19.3]} 31...
Ne6 {[%clk 0:00:41.9]} 32. Qe3 {[%clk 0:00:17.4]} 32... Qa1+ {[%clk 0:00:35.4]}
33. Kh2 {[%clk 0:00:17.4]} 33... Qe5+ {[%clk 0:00:33.1]} 34. Kg1 {[%clk
0:00:17.3]} 34... Nc5 {[%clk 0:00:23.2]} 35. Ra7 {[%clk 0:00:16.1]} 35... Nd3
{[%clk 0:00:06.7]} 36. g3 {[%clk 0:00:13.7]} 36... Nxf2 {[%clk 0:00:05]} 37. c5
{[%clk 0:00:08]} 37... Ng4 {[%clk 0:00:04.7]} 38. Qb3 {[%clk 0:00:06.1]} 38...
Qxc5+ {[%clk 0:00:04.2]} 39. Kg2 {[%clk 0:00:05.7]} 39... Qxa7 {[%clk
0:00:03.3]} 40. a5 {[%clk 0:00:05.3]} 40... Qf2+ {[%clk 0:00:03.5]} 41. Kh3
{[%clk 0:00:05.6]} 41... Qf1+ {[%clk 0:00:03.4]} 42. Kxg4 {[%clk 0:00:05.4]}
42... Qf5# {[%clk 0:00:04.3]} 0-1

[Event "Early-Titled-Tuesday-Blitz-May-07-2024"]
[Site "Chess.com"]
[Date "2024.05.07"]
[Round "8"]
[White "ErikRonka"]
[Black "juanchesst"]
[Result "0-1"]
[WhiteElo "2516"]
[BlackElo "2672"]
[TimeControl "180+1"]
[EndTime "9:34:49 PDT"]
[Termination "juanchesst won by resignation"]

1. e4 {[%clk 0:03:00.9]} 1... c5 {[%clk 0:03:00.1]} 2. Nf3 {[%clk 0:03:01.1]}
2... Nc6 {[%clk 0:03:00.5]} 3. d4 {[%clk 0:03:00.7]} 3... cxd4 {[%clk 0:03:01]}
4. Nxd4 {[%clk 0:03:01.6]} 4... Nf6 {[%clk 0:03:01.5]} 5. Nc3 {[%clk 0:03:02.1]}
5... e5 {[%clk 0:03:01.3]} 6. Ndb5 {[%clk 0:03:02.6]} 6... d6 {[%clk 0:03:01.6]}
7. Bg5 {[%clk 0:03:03]} 7... a6 {[%clk 0:03:02.2]} 8. Na3 {[%clk 0:03:03.4]}
8... b5 {[%clk 0:03:02.4]} 9. Bxf6 {[%clk 0:03:04]} 9... gxf6 {[%clk 0:03:02.8]}
10. Nd5 {[%clk 0:03:04.9]} 10... Bg7 {[%clk 0:03:02.9]} 11. Bd3 {[%clk
0:03:04.5]} 11... Ne7 {[%clk 0:03:01.8]} 12. Nxe7 {[%clk 0:02:35.8]} 12... Qxe7
{[%clk 0:03:02.7]} 13. O-O {[%clk 0:02:36.1]} 13... O-O {[%clk 0:02:59.9]} 14.
Qh5 {[%clk 0:02:14.9]} 14... Rb8 {[%clk 0:02:10]} 15. c4 {[%clk 0:01:52.7]}
15... bxc4 {[%clk 0:01:47.1]} 16. Nxc4 {[%clk 0:01:52.1]} 16... f5 {[%clk
0:01:42.5]} 17. Ne3 {[%clk 0:00:50]} 17... f4 {[%clk 0:01:24.3]} 18. Nd5 {[%clk
0:00:49.9]} 18... Qe6 {[%clk 0:01:19.7]} 19. b3 {[%clk 0:00:46.8]} 19... Kh8
{[%clk 0:01:16.8]} 20. Rfd1 {[%clk 0:00:37.6]} 20... Qg6 {[%clk 0:01:07.9]} 21.
Qxg6 {[%clk 0:00:32.9]} 21... hxg6 {[%clk 0:01:08.7]} 22. Be2 {[%clk 0:00:29.3]}
22... Rd8 {[%clk 0:01:07.3]} 23. Rac1 {[%clk 0:00:28.3]} 23... Be6 {[%clk
0:01:02]} 24. Ne7 {[%clk 0:00:26.9]} 24... Rb6 {[%clk 0:00:57.2]} 25. Nd5 {[%clk
0:00:25.2]} 25... Rb7 {[%clk 0:00:54.1]} 26. Bxa6 {[%clk 0:00:20]} 26... Ra7
{[%clk 0:00:54.4]} 27. Rc6 {[%clk 0:00:19.7]} 27... Rda8 {[%clk 0:00:49.9]} 28.
Nc7 {[%clk 0:00:07.3]} 28... Rxc7 {[%clk 0:00:47.4]} 29. Rxc7 {[%clk 0:00:08.2]}
29... Rxa6 {[%clk 0:00:47.8]} 30. g3 {[%clk 0:00:08.7]} 30... f3 {[%clk
0:00:46.1]} 31. Rc3 {[%clk 0:00:07.4]} 31... Rxa2 {[%clk 0:00:43.2]} 32. Rxf3
{[%clk 0:00:06.8]} 32... Bf8 {[%clk 0:00:43.7]} 33. Rfd3 {[%clk 0:00:04.6]}
33... Kg7 {[%clk 0:00:43.5]} 34. R1d2 {[%clk 0:00:04.8]} 34... Ra1+ {[%clk
0:00:42.4]} 35. Kg2 {[%clk 0:00:05.1]} 35... Rb1 {[%clk 0:00:42.9]} 36. f4
{[%clk 0:00:04.8]} 36... Rxb3 {[%clk 0:00:40.6]} 37. Rxb3 {[%clk 0:00:04.4]}
37... Bxb3 {[%clk 0:00:40.7]} 38. Kf3 {[%clk 0:00:04.7]} 38... Kf6 {[%clk
0:00:36.8]} 39. Rb2 {[%clk 0:00:04.3]} 39... Be6 {[%clk 0:00:36.7]} 40. Rb6
{[%clk 0:00:04.7]} 40... Ke7 {[%clk 0:00:35.8]} 41. Ra6 {[%clk 0:00:04.6]} 41...
Bg7 {[%clk 0:00:33.8]} 42. Ra7+ {[%clk 0:00:05.5]} 42... Bd7 {[%clk 0:00:33.4]}
43. Ke3 {[%clk 0:00:02.7]} 43... f5 {[%clk 0:00:32]} 44. fxe5 {[%clk 0:00:02.1]}
44... dxe5 {[%clk 0:00:31.8]} 45. Ra6 {[%clk 0:00:02.1]} 45... Be6 {[%clk
0:00:31.5]} 46. Ra7+ {[%clk 0:00:02]} 46... Kf6 {[%clk 0:00:32.2]} 47. Ra6
{[%clk 0:00:02.9]} 47... Bh6+ {[%clk 0:00:32.7]} 48. Kf3 {[%clk 0:00:03.3]}
48... Bd2 {[%clk 0:00:32.3]} 49. h4 {[%clk 0:00:02.7]} 49... Bc3 {[%clk
0:00:32.3]} 50. Rb6 {[%clk 0:00:02.9]} 50... Bd4 {[%clk 0:00:32.5]} 51. Ra6
{[%clk 0:00:03.3]} 51... Kf7 {[%clk 0:00:32.8]} 52. Ra7+ {[%clk 0:00:03.7]}
52... Bxa7 {[%clk 0:00:32.6]} 0-1

[Event "Early-Titled-Tuesday-Blitz-May-07-2024"]
[Site "Chess.com"]
[Date "2024.05.07"]
[Round "8"]
[White "JosefineHeinemann"]
[Black "alvarorodriguezavila"]
[Result "1/2-1/2"]
[WhiteElo "2513"]
[BlackElo "2340"]
[TimeControl "180+1"]
[EndTime "9:34:49 PDT"]
[Termination "Game drawn by repetition"]

1. d4 {[%clk 0:03:00.4]} 1... Nf6 {[%clk 0:02:59.4]} 2. Bf4 {[%clk 0:02:58.7]}
2... d5 {[%clk 0:02:58.4]} 3. e3 {[%clk 0:02:54.1]} 3... c5 {[%clk 0:02:58.7]}
4. Nd2 {[%clk 0:02:51.6]} 4... Nc6 {[%clk 0:02:59.6]} 5. Ngf3 {[%clk 0:02:50.9]}
5... e6 {[%clk 0:03:00.2]} 6. c3 {[%clk 0:02:49.7]} 6... Bd6 {[%clk 0:03:00.8]}
7. Bg3 {[%clk 0:02:48.5]} 7... O-O {[%clk 0:03:01.3]} 8. Bd3 {[%clk 0:02:48.1]}
8... Qe7 {[%clk 0:03:01.8]} 9. O-O {[%clk 0:02:47.8]} 9... e5 {[%clk 0:03:01.6]}
10. dxe5 {[%clk 0:02:47.9]} 10... Nxe5 {[%clk 0:03:01.7]} 11. Nxe5 {[%clk
0:02:47.9]} 11... Bxe5 {[%clk 0:03:02.6]} 12. Qc2 {[%clk 0:02:37.3]} 12... Re8
{[%clk 0:02:44]} 13. c4 {[%clk 0:02:27.2]} 13... dxc4 {[%clk 0:02:36.6]} 14.
Nxc4 {[%clk 0:02:21.8]} 14... Bxg3 {[%clk 0:02:34.7]} 15. hxg3 {[%clk
0:02:22.7]} 15... Be6 {[%clk 0:02:34.5]} 16. a4 {[%clk 0:02:21.4]} 16... g6
{[%clk 0:02:27.1]} 17. Rfd1 {[%clk 0:02:19.8]} 17... Nd5 {[%clk 0:02:25.6]} 18.
Bf1 {[%clk 0:02:13.8]} 18... Nb4 {[%clk 0:02:24]} 19. Qc3 {[%clk 0:02:13.3]}
19... Rad8 {[%clk 0:02:16.2]} 20. b3 {[%clk 0:01:55.1]} 20... Bf5 {[%clk
0:02:08.7]} 21. Rd2 {[%clk 0:01:28.3]} 21... Rxd2 {[%clk 0:02:04]} 22. Nxd2
{[%clk 0:01:29.2]} 22... Rd8 {[%clk 0:02:01.9]} 23. Nf3 {[%clk 0:01:25.5]} 23...
Be4 {[%clk 0:01:53]} 24. Rc1 {[%clk 0:01:01.8]} 24... b6 {[%clk 0:01:52.7]} 25.
Qa1 {[%clk 0:00:56.9]} 25... Nd3 {[%clk 0:01:36.5]} 26. Bxd3 {[%clk 0:00:55.7]}
26... Rxd3 {[%clk 0:01:35.6]} 27. Rc3 {[%clk 0:00:24.8]} 27... Rd8 {[%clk
0:01:23.7]} 28. Rc1 {[%clk 0:00:23.5]} 28... Rd3 {[%clk 0:01:17.3]} 29. Qb2
{[%clk 0:00:23.3]} 29... Bd5 {[%clk 0:01:14]} 30. Nd2 {[%clk 0:00:18.6]} 30...
Qb7 {[%clk 0:01:08.5]} 31. Qc2 {[%clk 0:00:17.5]} 31... Be4 {[%clk 0:01:02.7]}
32. Nxe4 {[%clk 0:00:17.4]} 32... Qxe4 {[%clk 0:01:03.3]} 33. Kh2 {[%clk
0:00:17.3]} 33... Qd5 {[%clk 0:01:02.7]} 34. Kg1 {[%clk 0:00:16.1]} 34... Qxb3
{[%clk 0:01:00.8]} 35. Qe2 {[%clk 0:00:15.7]} 35... Rd8 {[%clk 0:00:49.4]} 36.
a5 {[%clk 0:00:15.2]} 36... Qa3 {[%clk 0:00:43.2]} 37. Rd1 {[%clk 0:00:13.7]}
37... Rxd1+ {[%clk 0:00:35.8]} 38. Qxd1 {[%clk 0:00:14.6]} 38... Qb2 {[%clk
0:00:35.9]} 39. axb6 {[%clk 0:00:13.2]} 39... axb6 {[%clk 0:00:36]} 40. Qd8+
{[%clk 0:00:13.1]} 40... Kg7 {[%clk 0:00:36.5]} 41. g4 {[%clk 0:00:13.7]} 41...
h6 {[%clk 0:00:35.6]} 42. g3 {[%clk 0:00:12.8]} 42... b5 {[%clk 0:00:34.3]} 43.
Kg2 {[%clk 0:00:12.4]} 43... b4 {[%clk 0:00:34.6]} 44. g5 {[%clk 0:00:12.3]}
44... hxg5 {[%clk 0:00:34.4]} 45. Qxg5 {[%clk 0:00:13.2]} 45... Qc3 {[%clk
0:00:34.1]} 46. e4 {[%clk 0:00:10.6]} 46... b3 {[%clk 0:00:34.2]} 47. e5 {[%clk
0:00:11]} 47... b2 {[%clk 0:00:33.5]} 48. Qf6+ {[%clk 0:00:11]} 48... Kg8 {[%clk
0:00:30.1]} 49. Qd8+ {[%clk 0:00:11]} 49... Kg7 {[%clk 0:00:22.9]} 50. Qf6+
{[%clk 0:00:10.8]} 50... Kh7 {[%clk 0:00:23.8]} 51. Qh4+ {[%clk 0:00:10.6]}
51... Kg7 {[%clk 0:00:23]} 52. Qf6+ {[%clk 0:00:10.6]} 1/2-1/2

[Event "Early-Titled-Tuesday-Blitz-May-07-2024"]
[Site "Chess.com"]
[Date "2024.05.07"]
[Round "8"]
[White "Larina_Maria"]
[Black "ScofieldMichael01"]
[Result "1-0"]
[WhiteElo "2352"]
[BlackElo "2531"]
[TimeControl "180+1"]
[EndTime "9:34:51 PDT"]
[Termination "Larina_Maria won on time"]

1. e4 {[%clk 0:03:00.9]} 1... e6 {[%clk 0:02:59.5]} 2. Nf3 {[%clk 0:02:59.8]}
2... d5 {[%clk 0:02:59.9]} 3. e5 {[%clk 0:03:00.4]} 3... c5 {[%clk 0:02:59.5]}
4. b4 {[%clk 0:03:01.2]} 4... cxb4 {[%clk 0:02:58.2]} 5. a3 {[%clk 0:03:01.4]}
5... Nc6 {[%clk 0:02:55.2]} 6. d4 {[%clk 0:02:59.8]} 6... f6 {[%clk 0:02:50.8]}
7. exf6 {[%clk 0:02:55.7]} 7... Nxf6 {[%clk 0:02:50.5]} 8. Bd3 {[%clk
0:02:55.8]} 8... Bd6 {[%clk 0:02:47.5]} 9. O-O {[%clk 0:02:51.9]} 9... O-O
{[%clk 0:02:47.6]} 10. Bg5 {[%clk 0:02:44.6]} 10... Qc7 {[%clk 0:02:42.2]} 11.
c3 {[%clk 0:02:35.8]} 11... bxa3 {[%clk 0:02:35.9]} 12. Nxa3 {[%clk 0:02:34.6]}
12... a6 {[%clk 0:02:36.6]} 13. Nb5 {[%clk 0:02:31.9]} 13... Qb8 {[%clk
0:02:30.5]} 14. Nxd6 {[%clk 0:02:31.6]} 14... Qxd6 {[%clk 0:02:31.4]} 15. Re1
{[%clk 0:02:26.7]} 15... Bd7 {[%clk 0:02:13.8]} 16. Ne5 {[%clk 0:02:26.4]} 16...
Be8 {[%clk 0:02:12.9]} 17. Qe2 {[%clk 0:02:18.5]} 17... Ne4 {[%clk 0:01:27]} 18.
Bxe4 {[%clk 0:01:59.2]} 18... dxe4 {[%clk 0:01:26.9]} 19. Qxe4 {[%clk
0:01:57.2]} 19... Nxe5 {[%clk 0:01:26.1]} 20. Qxe5 {[%clk 0:01:53.6]} 20... Qxe5
{[%clk 0:01:25]} 21. Rxe5 {[%clk 0:01:54.5]} 21... Rc8 {[%clk 0:01:19.6]} 22.
Bd2 {[%clk 0:01:49.4]} 22... Kf7 {[%clk 0:01:14.9]} 23. Rb1 {[%clk 0:01:47.3]}
23... Bc6 {[%clk 0:01:14.9]} 24. c4 {[%clk 0:01:40.3]} 24... Rfd8 {[%clk
0:01:11.9]} 25. Be3 {[%clk 0:01:38.7]} 25... b5 {[%clk 0:01:00.3]} 26. cxb5
{[%clk 0:01:33.5]} 26... Bxb5 {[%clk 0:01:00]} 27. Rc5 {[%clk 0:01:24.6]} 27...
Rb8 {[%clk 0:00:35.5]} 28. Rc7+ {[%clk 0:01:20.4]} 28... Kg6 {[%clk 0:00:34]}
29. h4 {[%clk 0:01:08.2]} 29... Rdc8 {[%clk 0:00:28.9]} 30. Rbc1 {[%clk
0:01:07.2]} 30... Rxc7 {[%clk 0:00:26.9]} 31. Rxc7 {[%clk 0:01:08.1]} 31... a5
{[%clk 0:00:26.4]} 32. Ra7 {[%clk 0:01:08]} 32... a4 {[%clk 0:00:26]} 33. Bf4
{[%clk 0:00:59.1]} 33... Rc8 {[%clk 0:00:15.9]} 34. Be5 {[%clk 0:00:59.5]} 34...
Kf5 {[%clk 0:00:14.7]} 35. Bxg7 {[%clk 0:00:57.3]} 35... Rc1+ {[%clk 0:00:14.9]}
36. Kh2 {[%clk 0:00:57.1]} 36... Rc2 {[%clk 0:00:15.4]} 37. f3 {[%clk
0:00:50.7]} 37... Ra2 {[%clk 0:00:14]} 38. Be5 {[%clk 0:00:41.9]} 38... Bc6
{[%clk 0:00:04.7]} 39. Kg3 {[%clk 0:00:40.5]} 39... h5 {[%clk 0:00:03]} 40. Rh7
{[%clk 0:00:35.5]} 40... a3 {[%clk 0:00:02]} 41. Rxh5+ {[%clk 0:00:34.9]} 41...
Kg6 {[%clk 0:00:02.5]} 42. Rg5+ {[%clk 0:00:34.9]} 42... Kf7 {[%clk 0:00:02.5]}
43. Rg7+ {[%clk 0:00:35.5]} 43... Ke8 {[%clk 0:00:03]} 44. Ra7 {[%clk
0:00:36.3]} 44... Bd5 {[%clk 0:00:01.5]} 45. Bd6 {[%clk 0:00:35.3]} 45... Rd2
{[%clk 0:00:02.1]} 46. Rxa3 {[%clk 0:00:32.5]} 46... Rxd4 {[%clk 0:00:02.8]} 47.
Be5 {[%clk 0:00:33.2]} 47... Rc4 {[%clk 0:00:02.3]} 48. Ra7 {[%clk 0:00:32.1]}
48... Rc2 {[%clk 0:00:01.9]} 49. h5 {[%clk 0:00:31.7]} 49... Rc1 {[%clk
0:00:02.3]} 50. h6 {[%clk 0:00:31.4]} 50... Rh1 {[%clk 0:00:00.8]} 51. h7 {[%clk
0:00:32.2]} 51... Be4 {[%clk 0:00:00.6]} 52. h8=Q+ {[%clk 0:00:31.5]} 1-0

[Event "Early-Titled-Tuesday-Blitz-May-07-2024"]
[Site "Chess.com"]
[Date "2024.05.07"]
[Round "8"]
[White "UF_10"]
[Black "ValiantCeleb"]
[Result "0-1"]
[WhiteElo "2493"]
[BlackElo "2287"]
[TimeControl "180+1"]
[EndTime "9:34:52 PDT"]
[Termination "ValiantCeleb won by resignation"]

1. d4 {[%clk 0:03:00.9]} 1... d5 {[%clk 0:02:59.4]} 2. Nf3 {[%clk 0:03:00.2]}
2... Nf6 {[%clk 0:02:59.2]} 3. Bf4 {[%clk 0:03:00.7]} 3... c5 {[%clk 0:02:58.2]}
4. e3 {[%clk 0:03:00.9]} 4... Nc6 {[%clk 0:02:58.7]} 5. Nbd2 {[%clk 0:03:00.4]}
5... Bg4 {[%clk 0:02:57.8]} 6. Be2 {[%clk 0:02:59.3]} 6... e6 {[%clk 0:02:57.3]}
7. c3 {[%clk 0:02:59.3]} 7... Qb6 {[%clk 0:02:54.8]} 8. Rb1 {[%clk 0:02:52.5]}
8... Bf5 {[%clk 0:02:52.4]} 9. O-O {[%clk 0:02:46.8]} 9... Bxb1 {[%clk
0:02:50.7]} 10. Qxb1 {[%clk 0:02:47.7]} 10... Be7 {[%clk 0:02:49]} 11. h3 {[%clk
0:02:43.2]} 11... O-O {[%clk 0:02:48.4]} 12. Bd3 {[%clk 0:02:43.6]} 12... h6
{[%clk 0:02:45]} 13. Re1 {[%clk 0:02:42.4]} 13... Rac8 {[%clk 0:02:37.2]} 14.
Nf1 {[%clk 0:02:39.8]} 14... Rfd8 {[%clk 0:02:29.6]} 15. N1h2 {[%clk 0:02:37.3]}
15... Bd6 {[%clk 0:02:28.3]} 16. Ne5 {[%clk 0:02:35.6]} 16... Bxe5 {[%clk
0:02:25.5]} 17. dxe5 {[%clk 0:02:36.5]} 17... Nd7 {[%clk 0:02:20.9]} 18. Nf3
{[%clk 0:02:29.8]} 18... d4 {[%clk 0:02:13.7]} 19. c4 {[%clk 0:02:24.2]} 19...
Nf8 {[%clk 0:01:57.8]} 20. Be4 {[%clk 0:02:15.4]} 20... Qb4 {[%clk 0:01:36.7]}
21. Qc1 {[%clk 0:02:10.1]} 21... d3 {[%clk 0:01:31.5]} 22. Nd2 {[%clk
0:02:05.8]} 22... Nd7 {[%clk 0:01:15.2]} 23. a3 {[%clk 0:02:02.7]} 23... Qb6
{[%clk 0:01:13.1]} 24. Qc3 {[%clk 0:01:41.3]} 24... Qa5 {[%clk 0:01:02.4]} 25.
Qxa5 {[%clk 0:01:30.1]} 25... Nxa5 {[%clk 0:01:01.2]} 26. Bg3 {[%clk 0:01:31]}
26... Nc6 {[%clk 0:00:48.1]} 27. f4 {[%clk 0:01:31.1]} 27... f5 {[%clk
0:00:43.1]} 28. Bf3 {[%clk 0:01:22.3]} 28... a6 {[%clk 0:00:30.1]} 29. Bh4
{[%clk 0:01:17.8]} 29... Rf8 {[%clk 0:00:20.5]} 30. b4 {[%clk 0:01:13.4]} 30...
cxb4 {[%clk 0:00:18.7]} 31. axb4 {[%clk 0:01:13]} 31... g5 {[%clk 0:00:15.7]}
32. Bf2 {[%clk 0:01:06.9]} 32... Nxb4 {[%clk 0:00:12.2]} 33. Rb1 {[%clk
0:00:59]} 33... a5 {[%clk 0:00:11.9]} 34. Bxb7 {[%clk 0:00:56.7]} 34... Rb8
{[%clk 0:00:12.5]} 35. Bf3 {[%clk 0:00:55.4]} 35... a4 {[%clk 0:00:12.6]} 36. c5
{[%clk 0:00:51.4]} 36... Nc2 {[%clk 0:00:12.6]} 37. Rc1 {[%clk 0:00:37.7]} 37...
a3 {[%clk 0:00:12.5]} 38. c6 {[%clk 0:00:37.5]} 38... a2 {[%clk 0:00:09.8]} 39.
cxd7 {[%clk 0:00:36.9]} 39... a1=Q {[%clk 0:00:09.8]} 40. Rxa1 {[%clk
0:00:37.2]} 40... Nxa1 {[%clk 0:00:10.6]} 41. Be4 {[%clk 0:00:31]} 41... fxe4
{[%clk 0:00:09.7]} 42. Nxe4 {[%clk 0:00:31.5]} 42... Rfd8 {[%clk 0:00:09.8]} 43.
fxg5 {[%clk 0:00:27.2]} 43... hxg5 {[%clk 0:00:09.7]} 44. h4 {[%clk 0:00:26.3]}
44... Rb4 {[%clk 0:00:07.5]} 45. Nf6+ {[%clk 0:00:25.3]} 45... Kf7 {[%clk
0:00:07.6]} 46. hxg5 {[%clk 0:00:26.2]} 46... d2 {[%clk 0:00:07.8]} 0-1